Cogmind - Beta 9.6 @@@ ROGUE MODE // 2020.04.14 @ 09:43:36 Player: OccultOnion Result: Destroyed by S-27 Virus with Autogun Performance ------------- Evolutions (3) 1500 Regions Visited (4) 800 Robots Destroyed (46) 230 Value Destroyed (894) 894 Prototype IDs (0) 0 Alien Tech Used (0) 0 Bonus (22) 22 TOTAL SCORE: 3446 Bonus ------- High Alert Combat Kills 22 Cogmind --------- Core Integrity 0/700 Matter 62/300 Energy 100/100 System Corruption 0% Temperature Cool (0) Movement Core (50) Location -7/Factory Parts ------- > --- POWER (2) -------- (None) > --- PROPULSION (4) --- (None) > --- UTILITY (4) ------ (None) > --- WEAPON (3) ------- (None) > --- INVENTORY (4) ---- VTOL Module Improved Terrain Scanner Advanced Targeting Computer Improved Light Armor Plating Peak State ------------ > --- POWER ------------ Ion Engine > --- PROPULSION ------- Aluminum Leg Wheel Compact Wheel Flight Unit > --- UTILITY ---------- Heat Sink Large Storage Unit Weight Redist. System Light Armor Plating > --- WEAPON ----------- Beam Rifle Mini Grenade Launcher > --- INVENTORY -------- Light Ion Engine Light Treads Flight Unit EM Pulse Gun Beam Rifle Heavy Assault Rifle Rocket Launcher [Rating: 15] Favorites ----------- Power Light Ion Engine Engine Light Ion Engine Propulsion Aluminum Leg Treads Light Treads Leg Aluminum Leg Wheel Compact Wheel Hover Unit Improved Hover Unit Flight Unit Flight Unit Utility Large Storage Unit Device Improved Terrain Scanner Storage Large Storage Unit Protection Light Armor Plating Weapon Mini Grenade Launcher Energy Gun EM Pulse Gun Ballistic Gun Heavy Assault Rifle Ballistic Cannon Improved Light Cannon Launcher Mini Grenade Launcher Impact Weapon Power Maul Build | -11 -10 -9 -8 -7 ------- Run | Scr Mat Mat Mat Fac Slots Evolved 6 | . . 2 2 2 Power 1 | . . . . 1 Propulsion 2 | . . 1 1 . Utility 2 | . . 1 1 . Weapon 1 | . . . . 1 Parts Attached 32 | 7 3 7 14 1 Power 4 | 1 . 1 2 . Engine 4 | 1 . 1 2 . Core . | . . . . . Reactor . | . . . . . Propulsion 10 | 2 . 3 5 . Treads 1 | . . . 1 . Leg 3 | 2 . 1 . . Wheel 2 | . . 1 1 . Hover 2 | . . . 2 . Flight 2 | . . 1 1 . Utility 7 | 2 1 2 2 . Device 4 | 1 . 2 1 . Storage 2 | 1 1 . . . Processor . | . . . . . Hackware . | . . . . . Protection 1 | . . . 1 . Artifact . | . . . . . Weapon 11 | 2 2 1 5 1 Energy Gun 6 | 2 1 1 2 . Energy Cannon . | . . . . . Ballistic Gun 1 | . . . 1 . Ballistic Cannon 1 | . . . 1 . Launcher 2 | . 1 . 1 . Special Weapon . | . . . . . Impact Weapon 1 | . . . . 1 Slashing Weapon . | . . . . . Piercing Weapon . | . . . . . Special Melee Weapon . | . . . . . Unidentified Prototypes . | . . . . . Parts Lost 28 | . 1 6 16 5 Power 3 | . . 1 1 1 Propulsion 10 | . . 2 5 3 Utility 5 | . . 2 3 . Weapon 10 | . 1 1 7 1 Highest Loss Streak 14 | . 1 2 14 5 Average Slot Usage (%) 71 | . 99 86 35 20 Engine 9 | . 14 11 5 4 Leg 12 | . 28 8 2 . Wheel 4 | . . 11 3 . Hover 1 | . . . 3 10 Flight 4 | . . 9 2 4 Device 11 | . 14 17 3 . Storage 9 | . 14 11 6 . Energy Gun 9 | . 21 7 1 . Launcher 6 | . 5 11 3 . Naked Turns 35 | . . . 23 12 Heaviest Build 29 | 11 25 27 29 5 Greatest Support 32 | 20 20 22 32 16 Greatest Overweight (x) 7 | . 1 1 7 . Average Overweight (x) . | . . 1 . . Largest Inventory Capacity 10 | 6 10 10 10 4 Average Capacity 8 | 5 7 10 8 4 Most Carried 10 | 4 6 10 9 4 Average Carried 5 | 2 5 7 4 3 Final Capacity 10 | 6 10 10 4 4 Final Carried 10 | 3 6 10 4 4 Class Distribution -------------------- 100% | Mutant Dominant Class ---------------- Mutant | -10/Materials Mutant | -9/Materials Mutant | -8/Materials Mutant | -7/Factory Resources | -11 -10 -9 -8 -7 ----------- Run | Scr Mat Mat Mat Fac Matter Collected 496 | 266 34 34 134 28 Remotely . | . . . . . Salvage Created 722 | 52 284 189 197 . Parts 81 | 7 27 26 21 . Haulers Intercepted . | . . . . . Recyclers Shooed . | . . . . . Parts Field Recycled . | . . . . . Retrieved Matter . | . . . . . Parts Self-Destructed . | . . . . . Prevented . | . . . . . Kills | -11 -10 -9 -8 -7 ------- Run | Scr Mat Mat Mat Fac Combat Hostiles Destroyed 38 | . 11 13 14 . Guns 10 | . 7 2 1 . AOE 28 | . 4 11 13 . Classes Destroyed 9 | 1 5 3 . . Worker 2 | . . 2 . . Builder 1 | . 1 . . . Tunneler 3 | 3 . . . . Recycler 1 | . 1 . . . Watcher 1 | . 1 . . . Swarmer 25 | . 9 8 8 . Grunt 8 | . 2 2 4 . Duelist 1 | . . 1 . . Sentry 4 | . . 2 2 . Best Kill Streak 11 | 3 6 9 11 . Combat Bots Only 11 | . 5 7 11 . Max Kills in Single Turn 4 | 1 4 4 3 . Gunslinging . | . . . . . Exploded 4 | . 3 4 3 . Melee . | . . . . . Uniques/NPCs Destroyed . | . . . . . Combat | -11 -10 -9 -8 -7 -------- Run | Scr Mat Mat Mat Fac Damage Taken 3021 | . 288 337 1488 908 Core 1261 | . 50 43 467 701 Absorbed by Shields . | . . . . . Core Remaining (%) 71 | 100 80 89 15 . Volleys Fired 71 | 3 24 18 26 . Largest 2 | 2 2 2 2 . Hottest 96 | 80 96 86 86 . Shots Fired 96 | 6 37 25 28 . Gun 57 | 6 32 9 10 . Cannon 7 | . . . 7 . Launcher 32 | . 5 16 11 . Special . | . . . . . Kinetic 11 | . . . 11 . Thermal 21 | 3 8 8 2 . Explosive 32 | . 5 16 11 . Electromagnetic 32 | 3 24 1 4 . Robot Hit Streak 10 | 4 4 5 10 . Robot Miss Streak 3 | . 3 1 2 . Penetration Max . | . . . . . Secondary Targets . | . . . . . Shots Hit Robots 59 | 4 22 16 17 . Core Hits 70 | 3 19 21 25 2 Critical Hits 1 | . . . 1 . Critical Kills . | . . . . . Critical Parts Destroyed 1 | . . . 1 . Melee Attacks 1 | . . . . 1 Impact 1 | . . . . 1 Slashing . | . . . . . Piercing . | . . . . . Sneak Attacks . | . . . . . Combat Hostiles . | . . . . . Follow-up Attacks . | . . . . . Damage Inflicted 3083 | 49 659 951 1413 11 Guns 459 | 49 209 88 113 . Cannons 105 | . . . 105 . Explosions 2508 | . 450 863 1195 . Melee . | . . . . . Ramming 11 | . . . . 11 Kinetic 170 | . . . 170 . Thermal 197 | 12 22 88 75 . Explosive 2448 | . 450 863 1135 . Electromagnetic 257 | 37 187 . 33 . Impact . | . . . . . Slashing . | . . . . . Piercing . | . . . . . Highest Corruption . | . . . . . Average Corruption . | . . . . . Corruption Purged . | . . . . . Overload Shots . | . . . . . Overflow Damage 61 | . 21 18 22 . Projectiles . | . . . . . Explosions 61 | . 21 18 22 . Melee . | . . . . . Knockbacks 2 | . . . 2 . Impact . | . . . . . Kinetic 2 | . . . 2 . Secondary . | . . . . . Self-Inflicted Damage 200 | . 47 84 65 4 Shots 8 | . 2 2 4 . Rammed 3 | . . . . 3 Targets Rammed 3 | . . . . 3 Kicked . | . . . . . Crushed . | . . . . . Highest Temperature 168 | 18 168 63 25 . Average Temperature 46 | 12 66 27 8 . Received Heat Transfer 720 | . 48 60 612 . Siege Activations . | . . . . . Robots Corrupted . | . . . . . Combat Hostiles . | . . . . . Parts Fried . | . . . . . Impact Corruptions . | . . . . . Robots Melted . | . . . . . Combat Hostiles . | . . . . . Parts Melted . | . . . . . Heat Transferred 384 | 25 50 222 87 . Parts Sabotaged . | . . . . . Parts Stolen . | . . . . . Parts Stripped . | . . . . . Power Chain Reactions . | . . . . . Missiles Intercepted . | . . . . . Alert | -11 -10 -9 -8 -7 ------- Run | Scr Mat Mat Mat Fac Peak Influence 465 | 15 351 393 465 202 Average Influence 231 | 6 173 272 367 145 Maximum Alert Level 2 | . 1 1 2 1 Low Security (%) 36 | 100 60 10 15 35 Level 1 51 | . 39 89 30 64 Level 2 12 | . . . 54 . Level 3 . | . . . . . Level 4 . | . . . . . Level 5 . | . . . . . High Security . | . . . . . Max Security . | . . . . . Squads Dispatched 3 | . 2 . 1 . Investigation 1 | . . . 1 . Extermination . | . . . . . Reinforcement 2 | . 2 . . . Assault . | . . . . . Garrison . | . . . . . Intercept . | . . . . . Construction Impeded . | . . . . . Haulers Reinforced . | . . . . . Stealth | -11 -10 -9 -8 -7 --------- Run | Scr Mat Mat Mat Fac Distress Signals 1 | . 1 . . . Communications Jammed . | . . . . . Distress Signals . | . . . . . Times Spotted 61 | . 20 13 17 11 Peak Tracking Total 13 | . 7 7 13 8 Tactical Retreats 4 | . 2 . 1 1 Traps | -11 -10 -9 -8 -7 ------- Run | Scr Mat Mat Mat Fac Traps Triggered 1 | . . . 1 . Indirectly . | . . . . . Trap Hack Attempts . | . . . . . Triggered . | . . . . . Disarmed . | . . . . . Reprogrammed . | . . . . . Reused . | . . . . . Traps Extracted . | . . . . . Installed . | . . . . . Triggered . | . . . . . Machines | -11 -10 -9 -8 -7 ---------- Run | Scr Mat Mat Mat Fac Machines Disabled 4 | . 1 . 3 . Max in Single Turn 2 | . 1 . 2 . Machines Sabotaged . | . . . . . Garrisons Compromised . | . . . . . Overloaded Fab Kills . | . . . . . Fab Network Shutdowns . | . . . . . Hacking | -11 -10 -9 -8 -7 --------- Run | Scr Mat Mat Mat Fac Machines Accessed 6 | . . 3 1 2 Terminals 5 | . . 3 1 1 Fabricators . | . . . . . Repair Stations . | . . . . . Recycling Units . | . . . . . Scanalyzers . | . . . . . Garrison Access 1 | . . . . 1 Total Hacks 15 | . . 8 1 6 Successful 8 | . . 3 . 5 Failed 7 | . . 5 1 1 Catastrophic 3 | . . 1 1 1 Database Lockouts . | . . . . . Manual 7 | . . 3 . 4 Terminals 13 | . . 8 1 4 Fabricators . | . . . . . Repair Stations . | . . . . . Recycling Units . | . . . . . Scanalyzers . | . . . . . Garrison Access 2 | . . . . 2 Terminal Hacks 6 | . . 3 . 3 Alert Level 3 | . . 2 . 1 Unreport Threat 3 | . . 1 . 2 Fabricator Hacks . | . . . . . Repair Station Hacks . | . . . . . Recycling Unit Hacks . | . . . . . Scanalyzer . | . . . . . Garrison Access Hacks 2 | . . . . 2 Unlock Access 1 | . . . . 1 Coupler Status 1 | . . . . 1 Unauthorized Hacks . | . . . . . Terminals . | . . . . . Fabricators . | . . . . . Repair Stations . | . . . . . Recycling Units . | . . . . . Scanalyzers . | . . . . . Garrison Access . | . . . . . Data Cores Recovered . | . . . . . Used . | . . . . . Hacking Detections 5 | . . 3 1 1 Full Trace Events 1 | . . 1 . . Feedback Events . | . . . . . Feedback Blocked . | . . . . . Robot Schematics Acquired . | . . . . . Robots Built . | . . . . . Matter . | . . . . . Time . | . . . . . Total Robot Build Rating . | . . . . . Part Schematics Acquired . | . . . . . Parts Built . | . . . . . Matter . | . . . . . Time . | . . . . . Total Part Build Rating . | . . . . . Parts Repaired . | . . . . . Time . | . . . . . Parts Recycled . | . . . . . Recycled Matter . | . . . . . Retrieved Matter . | . . . . . Retrieved Components . | . . . . . Parts Scanalyzed . | . . . . . Part Schematics Acquired . | . . . . . Parts Damaged . | . . . . . Bothacking | -11 -10 -9 -8 -7 ------------ Run | Scr Mat Mat Mat Fac Used RIF Installer . | . . . . . Robots Hacked . | . . . . . Non-combat . | . . . . . Combat . | . . . . . Robot Hacks Applied . | . . . . . Relay Couplers Released . | . . . . . Robots Rewired . | . . . . . Allies Hacked . | . . . . . Hacks Repelled . | . . . . . Allies | -11 -10 -9 -8 -7 -------- Run | Scr Mat Mat Mat Fac Total Allies . | . . . . . Largest Group . | . . . . . Highest-Rated Group . | . . . . . Highest-Rated Ally . | . . . . . Total Orders . | . . . . . Ally Attacks . | . . . . . Total Damage . | . . . . . Kills . | . . . . . Allies Corrupted . | . . . . . Allies Melted . | . . . . . Intel | -11 -10 -9 -8 -7 ------- Run | Scr Mat Mat Mat Fac Robot Analysis Total . | . . . . . Derelict Logs Recovered . | . . . . . Drone Launches . | . . . . . Drone Recoveries . | . . . . . Exploration | -11 -10 -9 -8 -7 ------------- Run | Scr Mat Mat Mat Fac Turns Passed 1120 | 90 343 327 259 101 Spaces Moved 855 | 60 203 242 185 165 Core 108 | 10 . . 68 30 Treads . | . . . . . Legs 253 | 50 203 . . . Wheels 285 | . . 242 43 . Hover 203 | . . . 68 135 Flight 6 | . . . 6 . Fastest Speed 40 | 50 120 110 40 50 Average Speed 102 | 108 133 110 97 55 Slowest Speed 400 | 120 150 110 400 60 Overloaded Moves . | . . . . . Propulsion Burnouts . | . . . . . Robots Hopped . | . . . . . Cave-ins Triggered . | . . . . . Exploration Rate (%) 21 | 4 48 27 21 7 Regions Visited 4 Branch Regions . Pre-discovered Areas . | . . . . . Known Exits Taken . | . . . . . Unknown Exits Taken 4 | 1 1 1 1 . Scrap Searched . | . . . . . Spaces Dug 11 | . . 11 . . Terrain Destroyed 289 | . 40 148 101 . Melee . | . . . . . Projectile 1 | . . . 1 . AOE 288 | . 40 148 100 . Actions | -11 -10 -9 -8 -7 --------- Run | Scr Mat Mat Mat Fac Total 1005 | 79 240 277 235 174 Wait 3 | . 1 . 1 1 Move 851 | 59 202 241 184 165 Hop . | . . . . . Pick Up 38 | 10 7 11 8 2 Fast Attach . | . . . . . Attach 29 | 7 1 7 13 1 Detach . | . . . . . Swap 3 | . 2 . 1 . Drop 6 | . 3 . 2 1 Fire 71 | 3 24 18 26 . Melee 1 | . . . . 1 Ram 3 | . . . . 3 Kick . | . . . . . Crush . | . . . . . Escape Stasis . | . . . . . Rewire . | . . . . . Trap . | . . . . . Miscellaneous . | . . . . . Route ------- -11/Scrapyard -10/Materials (discovered 2 exits: *Mat x2) -9/Materials -8/Materials -7/Factory (discovered 1 exit: Gar) History --------- Turn | Location | Event 8 | -11/Scrapyard | Discovered new exit (range 15) 91 | -11/Scrapyard | Entered Materials 228 | -10/Materials | Discovered new exit (range 6) 317 | -10/Materials | Build established: Mutant 419 | -10/Materials | Discovered new exit (range 11) 434 | -10/Materials | Entered another Materials area 434 | -9/Materials | Evolved 2 slots: Propulsion x1, Utility x1 533 | -9/Materials | Destroyed 7 combat bots 727 | -9/Materials | Discovered new exit (range 13) 761 | -9/Materials | Entered another Materials area 761 | -8/Materials | Evolved 2 slots: Propulsion x1, Utility x1 837 | -8/Materials | Destroyed 11 combat bots 866 | -8/Materials | Core integrity fell below 50% 904 | -8/Materials | Lost 14 parts (1p5n3u5w) 963 | -8/Materials | Core integrity fell below 20% 1015 | -8/Materials | Discovered new exit (range 11) 1020 | -8/Materials | Entered Factory 1020 | -7/Factory | Evolved 2 slots: Power x1, Weapon x1 1111 | -7/Factory | Core integrity fell below 50% 1117 | -7/Factory | Core integrity fell below 20% 1121 | -7/Factory | Identified exit to Garrison 1121 | -7/Factory | Destroyed by S-27 Virus with Autogun Last Messages --------------- Current Alert Level: Low Security 01096_ Flight Unit destroyed. 01098_ Slammed into S-27 Virus. 01102_ Imp. Hover Unit destroyed. 01107_ Penetrated by Slug. 01109_ Power Maul destroyed. 01114_ Acquired 28 matter. 01115_ Acquired VTOL Module. 01119_ Penetrated by Slug. 01121_ Connecting with Garrison Access... >>Unlock Access door unlocked. 01121_ EXIT=UNLOCKED: GARRISON 01121_ Connecting with Garrison Access... >>Couplers Installed: Relay Coupler [Brawler] (20) Relay Coupler [Demolisher] (13) Relay Coupler [Hunter] (12) 01121_ Connecting with Garrison Access... Map ----- +----------------------------------------------------+ | ?????????????????????????????????????????????????? | | ?????????????????????????????????????????????????? | | ?????????????????????????????????????????????????? | | ?????????????????????????????????????????????????? | | ?????????????????????????????????????????????????? | | ?????????????????????????????????????????????????? | | ?????????????????????????????????????????????????? | | ?????????????????????????????????????????????????? | | #########??#?????????????????????????????????????? | | #?????????????????????????????????????? | | """ """ #?????????????????????????????????????? | | """ """ #?????????????????????????????????????? | | """ """ #?????????????????????????????????????? | | #?????????????????????????????????????? | | / """ #?????????????######### ??????????????? | | """ #????????????? ??????????????? | | """ #????????????? ?????????????? | | " #????????????# ???????????????? | | T #????????????+ ????????????????? | | " ! #????????????# k ?????????????????? | | #????????????# #??????????????????? | | ######+################## k#??????????????????? | | #??????????????????? | | #??????????????????? | | ! ** "" #??????????????????? | | ** @G" +??????????????????? | | ""a #??????????????????? | | #######+##### #??????????????????? | | ??# ## =""""""""" #??????????????????? | | ??# ## #??????????????????? | | ??# ## """"""""" #??????????????????? | | ??# ## #??????????????????? | | ??# !]]## #??????????????????? | | ??# !]]## ##### ##### #??????????????????? | | ??# !]]## #???# #???? #??????????????????? | | ??# ## #???# #???? #??????????????????? | | ??# ##+#####+##### #??????????????????? | | ??########## # #??????????????????? | | ???????????# + #??????????????????? | | ???????????# #?? ????????????????????? | | ???????????#! #????????????????????????? | | ???????????# #????????????????????????? | | ???????????# """" """" #????????????????????????? | | ???????????# """" """" #????????????????????????? | | ???????????# """" """" #????????????????????????? | | ???????????# """" """" #????????????????????????? | | ???????????# """" """" #????????????????????????? | | ############ """" """" #????????????????????????? | | ! ## #????????????????????????? | | #########+##### #??????????????????? | +----------------------------------------------------+ Best States ------------- Heat Dissipation 41 Energy Generation 10 Energy Capacity 250 Matter Stores 300 Matter Capacity 300 Sight Range 16 Terrain Scan Range 16 Terrain Scan Density 10 Additional Mass Support 6 Armor Coverage 150 Evasion (%) 53 Recoil Reduction 1 Item Schematics ----------------- None Robot Schematics ------------------ None Fabricated ------------ Nothing Alien Tech Used ----------------- None Achievements -------------- None Challenges ------------ None Game ------ Seed StorageDeepScrap Manual? 0 Play Time 00:15:18 Cumulative 43.4 hours Start 2020.04.14 @ 09:29:59 End 2020.04.14 @ 09:43:36 Sessions 1 Manual Loads 0 Difficulty Rogue Special Mode None Game No. 111 Rogue 111 Adventurer 0 Explorer 0 Win Type - Total 0 Types 0/0/0/0/0/0/0 Lore% 24 Gallery% 43 Achievement% 27 Wizard Run 0 Options --------- ASCII 0 Keyboard 0 Movement Numpad Keybinds 0 Fullscreen 2 Font 18/SmallcapsGlow Map View 76x50 Tactical HUD 1 Map Filters NONE Filters NONE Steam 1 RUN: 46ddd836-c6fb-46e2-86a9-7d99705a46f7